[Event "*** Titled Tuesday Blitz"]
[Site "Chess.com"]
[Date "2020.04.28"]
[Round "4"]
[White "TzoumpasAnastasis"]
[Black "Willychess95"]
[Result "1-0"]
[WhiteElo "2198"]
[BlackElo "2548"]
[TimeControl "180+1"]
[EndTime "10:41:46 PDT"]
[Termination "TzoumpasAnastasis won on time"]

1. e4 {[%clk 0:03:00.9]} 1... c5 {[%clk 0:02:58.1]} 2. Nf3 {[%clk 0:02:59.8]}
2... d6 {[%clk 0:02:58]} 3. c3 {[%clk 0:03:00.1]} 3... Nf6 {[%clk 0:02:56.1]} 4.
Be2 {[%clk 0:03:00.1]} 4... Nc6 {[%clk 0:02:52]} 5. d4 {[%clk 0:02:59.5]} 5...
cxd4 {[%clk 0:02:52.9]} 6. cxd4 {[%clk 0:02:58.8]} 6... d5 {[%clk 0:02:53.2]} 7.
e5 {[%clk 0:02:57.6]} 7... Ne4 {[%clk 0:02:53.5]} 8. O-O {[%clk 0:02:57.7]} 8...
g6 {[%clk 0:02:43.1]} 9. Be3 {[%clk 0:02:57.3]} 9... Bg7 {[%clk 0:02:42.6]} 10.
Nbd2 {[%clk 0:02:57.1]} 10... Nxd2 {[%clk 0:02:39.4]} 11. Nxd2 {[%clk
0:02:55.5]} 11... O-O {[%clk 0:02:40.3]} 12. Nb3 {[%clk 0:02:54.7]} 12... f6
{[%clk 0:02:36]} 13. f4 {[%clk 0:02:50.7]} 13... b6 {[%clk 0:02:33.8]} 14. Rc1
{[%clk 0:02:49.3]} 14... Bb7 {[%clk 0:02:32.5]} 15. Bb5 {[%clk 0:02:45.7]} 15...
Rc8 {[%clk 0:02:28.4]} 16. Qe2 {[%clk 0:02:39]} 16... fxe5 {[%clk 0:02:24.9]}
17. fxe5 {[%clk 0:02:27]} 17... Qd7 {[%clk 0:02:19.4]} 18. a3 {[%clk 0:02:17.1]}
18... Rxf1+ {[%clk 0:02:14]} 19. Rxf1 {[%clk 0:02:15.9]} 19... Rf8 {[%clk
0:02:02.2]} 20. Rxf8+ {[%clk 0:02:14.1]} 20... Bxf8 {[%clk 0:02:03.1]} 21. Qc2
{[%clk 0:02:10.2]} 21... a6 {[%clk 0:01:54.4]} 22. Bd3 {[%clk 0:02:07]} 22...
Nd8 {[%clk 0:01:46.8]} 23. Bxg6 {[%clk 0:01:55.5]} 23... hxg6 {[%clk 0:01:46.5]}
24. Qxg6+ {[%clk 0:01:55.3]} 24... Bg7 {[%clk 0:01:47]} 25. Qxb6 {[%clk
0:01:55.1]} 25... Ne6 {[%clk 0:01:29.6]} 26. Nc5 {[%clk 0:01:51.2]} 26... Nxc5
{[%clk 0:01:29.1]} 27. Qxc5 {[%clk 0:01:50.7]} 27... Kf7 {[%clk 0:01:23.6]} 28.
h3 {[%clk 0:01:45.9]} 28... Qb5 {[%clk 0:01:23.4]} 29. Qxb5 {[%clk 0:01:37.8]}
29... axb5 {[%clk 0:01:24.3]} 30. b4 {[%clk 0:01:32]} 30... Bc8 {[%clk
0:01:22.1]} 31. g4 {[%clk 0:01:30.9]} 31... Kg6 {[%clk 0:01:21.9]} 32. Kf2
{[%clk 0:01:27.8]} 32... Be6 {[%clk 0:01:17]} 33. Kf3 {[%clk 0:01:26.2]} 33...
Bg8 {[%clk 0:01:16.1]} 34. Bf4 {[%clk 0:01:25.8]} 34... Kf7 {[%clk 0:01:15.6]}
35. h4 {[%clk 0:01:25.7]} 35... Bh7 {[%clk 0:01:15.5]} 36. h5 {[%clk 0:01:22.3]}
36... Bc2 {[%clk 0:01:15]} 37. Ke2 {[%clk 0:01:18.6]} 37... Bf8 {[%clk
0:01:07.4]} 38. g5 {[%clk 0:01:17.7]} 38... Be4 {[%clk 0:01:01.4]} 39. g6+
{[%clk 0:01:12.8]} 39... Ke6 {[%clk 0:00:56.1]} 40. Bg5 {[%clk 0:01:09.4]} 40...
Bf5 {[%clk 0:00:28.2]} 41. Ke3 {[%clk 0:01:08.4]} 41... Bc2 {[%clk 0:00:28.3]}
42. Kf4 {[%clk 0:01:07.3]} 42... Bd3 {[%clk 0:00:26.6]} 43. Kg4 {[%clk
0:01:04.1]} 43... Be2+ {[%clk 0:00:25.5]} 44. Kh4 {[%clk 0:01:03.7]} 44... Bd3
{[%clk 0:00:24.7]} 45. Kg3 {[%clk 0:00:46]} 45... Bc2 {[%clk 0:00:20.7]} 46. Kf4
{[%clk 0:00:44.4]} 46... Bd3 {[%clk 0:00:17.6]} 47. Ke3 {[%clk 0:00:44]} 47...
Bb1 {[%clk 0:00:18.5]} 48. Kd2 {[%clk 0:00:44.1]} 48... Kf5 {[%clk 0:00:15.3]}
49. Bxe7 {[%clk 0:00:42]} 49... Bh6+ {[%clk 0:00:14.3]} 50. Kc3 {[%clk 0:00:41]}
50... Kg4 {[%clk 0:00:14.2]} 51. Bf6 {[%clk 0:00:36]} 51... Kxh5 {[%clk
0:00:13.5]} 52. g7 {[%clk 0:00:35.3]} 52... Bh7 {[%clk 0:00:13.9]} 53. e6 {[%clk
0:00:35.2]} 53... Kg6 {[%clk 0:00:12.7]} 54. e7 {[%clk 0:00:34.7]} 54... Kf7
{[%clk 0:00:12.6]} 55. Kb3 {[%clk 0:00:32.6]} 55... Bg8 {[%clk 0:00:09.4]} 56.
a4 {[%clk 0:00:31.7]} 56... bxa4+ {[%clk 0:00:08.7]} 57. Kxa4 {[%clk 0:00:31.8]}
57... Ke8 {[%clk 0:00:06.1]} 58. b5 {[%clk 0:00:31.9]} 58... Bf4 {[%clk
0:00:06.3]} 59. b6 {[%clk 0:00:31.5]} 59... Be6 {[%clk 0:00:05.8]} 60. Be5
{[%clk 0:00:27.6]} 60... Bg5 {[%clk 0:00:02.6]} 61. b7 {[%clk 0:00:27]} 1-0

[Event "*** Titled Tuesday Blitz"]
[Site "Chess.com"]
[Date "2020.04.28"]
[Round "4"]
[White "Phenix2k"]
[Black "Two_Towers_Krakow"]
[Result "0-1"]
[WhiteElo "2291"]
[BlackElo "2470"]
[TimeControl "180+1"]
[EndTime "10:41:46 PDT"]
[Termination "Two_Towers_Krakow won by resignation"]

1. d4 {[%clk 0:03:00.9]} 1... Nf6 {[%clk 0:02:58.8]} 2. c4 {[%clk 0:03:00.8]}
2... e6 {[%clk 0:02:58.9]} 3. Nc3 {[%clk 0:03:00.9]} 3... Bb4 {[%clk 0:02:57.1]}
4. Qc2 {[%clk 0:03:01.2]} 4... O-O {[%clk 0:02:54.9]} 5. e4 {[%clk 0:03:01.2]}
5... d5 {[%clk 0:02:50.7]} 6. e5 {[%clk 0:03:00.5]} 6... Ne4 {[%clk 0:02:50.9]}
7. Bd3 {[%clk 0:03:00.7]} 7... c5 {[%clk 0:02:49.1]} 8. Nf3 {[%clk 0:03:00.7]}
8... cxd4 {[%clk 0:02:47.8]} 9. Nxd4 {[%clk 0:03:01.6]} 9... Nc6 {[%clk
0:02:42.5]} 10. Nxc6 {[%clk 0:02:58.3]} 10... bxc6 {[%clk 0:02:43.4]} 11. O-O
{[%clk 0:02:52.9]} 11... Bxc3 {[%clk 0:02:39.3]} 12. bxc3 {[%clk 0:02:50.5]}
12... f5 {[%clk 0:02:29.5]} 13. exf6 {[%clk 0:02:43.6]} 13... Nxf6 {[%clk
0:02:27.4]} 14. Bg5 {[%clk 0:02:33.2]} 14... h6 {[%clk 0:02:27.1]} 15. Bh4
{[%clk 0:02:30.4]} 15... e5 {[%clk 0:02:26.9]} 16. cxd5 {[%clk 0:02:25.4]} 16...
cxd5 {[%clk 0:02:26.5]} 17. c4 {[%clk 0:02:20.8]} 17... d4 {[%clk 0:02:14.6]}
18. Rae1 {[%clk 0:02:13.1]} 18... Qa5 {[%clk 0:02:07.8]} 19. f4 {[%clk
0:01:55.4]} 19... exf4 {[%clk 0:02:01.3]} 20. Bxf6 {[%clk 0:01:40.7]} 20... Rxf6
{[%clk 0:01:58.4]} 21. Re8+ {[%clk 0:01:40.5]} 21... Kf7 {[%clk 0:01:58.6]} 22.
Rfe1 {[%clk 0:01:37.1]} 22... Be6 {[%clk 0:01:51.2]} 23. Rxa8 {[%clk 0:00:53]}
23... Qxe1+ {[%clk 0:01:47.6]} 24. Bf1 {[%clk 0:00:53.5]} 24... Qe3+ {[%clk
0:01:41.8]} 25. Kh1 {[%clk 0:00:52.5]} 25... d3 {[%clk 0:01:36]} 26. Qxd3 {[%clk
0:00:52.3]} 26... Rf5 {[%clk 0:01:17.3]} 27. h3 {[%clk 0:00:34.5]} 27... Qxd3
{[%clk 0:01:06.9]} 28. Bxd3 {[%clk 0:00:34.4]} 28... Ra5 {[%clk 0:01:07.3]} 29.
c5 {[%clk 0:00:29]} 29... Rxa2 {[%clk 0:01:01.7]} 30. c6 {[%clk 0:00:27.8]}
30... Bd5 {[%clk 0:01:02]} 31. c7 {[%clk 0:00:23.4]} 31... Ra1+ {[%clk
0:01:01.7]} 32. Kh2 {[%clk 0:00:18.8]} 32... Be6 {[%clk 0:00:58.9]} 33. c8=Q
{[%clk 0:00:18.3]} 33... Bxc8 {[%clk 0:00:58.6]} 34. Rxc8 {[%clk 0:00:19.2]}
34... a5 {[%clk 0:00:58]} 35. Rc7+ {[%clk 0:00:19.1]} 35... Kf6 {[%clk
0:00:58.2]} 36. Ra7 {[%clk 0:00:18.3]} 36... a4 {[%clk 0:00:56.6]} 37. h4 {[%clk
0:00:18.2]} 37... a3 {[%clk 0:00:56.2]} 38. Bc4 {[%clk 0:00:18.3]} 38... g5
{[%clk 0:00:54.7]} 39. Ra6+ {[%clk 0:00:17.1]} 39... Kg7 {[%clk 0:00:53.2]} 40.
h5 {[%clk 0:00:17.5]} 40... Rc1 {[%clk 0:00:50.9]} 41. Ra7+ {[%clk 0:00:15.1]}
41... Kf6 {[%clk 0:00:50.2]} 42. Ba2 {[%clk 0:00:13.9]} 42... Rc3 {[%clk
0:00:41.7]} 43. Ra6+ {[%clk 0:00:13.5]} 43... Kf5 {[%clk 0:00:41.3]} 44. Rxh6
{[%clk 0:00:13.5]} 44... g4 {[%clk 0:00:41.7]} 45. Rh8 {[%clk 0:00:11.5]} 45...
Kg5 {[%clk 0:00:41.5]} 46. h6 {[%clk 0:00:10.1]} 46... g3+ {[%clk 0:00:40.6]}
47. Kh3 {[%clk 0:00:10.2]} 47... Rc1 {[%clk 0:00:34.3]} 48. Rg8+ {[%clk
0:00:10.2]} 48... Kxh6 {[%clk 0:00:33.6]} 49. Kg4 {[%clk 0:00:10.2]} 49... Rc2
{[%clk 0:00:30]} 50. Bd5 {[%clk 0:00:10.2]} 50... Rd2 {[%clk 0:00:25]} 51. Ra8
{[%clk 0:00:08.8]} 51... Rxd5 {[%clk 0:00:23.2]} 52. Rxa3 {[%clk 0:00:09.3]}
52... Rd4 {[%clk 0:00:20.5]} 53. Rf3 {[%clk 0:00:08.7]} 53... Rd2 {[%clk
0:00:18.8]} 54. Kh3 {[%clk 0:00:06.2]} 54... Rf2 {[%clk 0:00:18.8]} 55. Rc3
{[%clk 0:00:04.9]} 55... Kg5 {[%clk 0:00:19]} 56. Rc5+ {[%clk 0:00:05.1]} 56...
Kf6 {[%clk 0:00:19]} 57. Rc3 {[%clk 0:00:05.3]} 57... Kf5 {[%clk 0:00:18.7]} 58.
Ra3 {[%clk 0:00:05.5]} 58... Rf1 {[%clk 0:00:17.6]} 59. Ra5+ {[%clk 0:00:05.6]}
59... Ke4 {[%clk 0:00:17.9]} 60. Ra4+ {[%clk 0:00:06]} 60... Ke3 {[%clk
0:00:18]} 61. Ra3+ {[%clk 0:00:06.4]} 61... Kf2 {[%clk 0:00:18.3]} 62. Ra2+
{[%clk 0:00:06.6]} 62... Kg1 {[%clk 0:00:18.6]} 63. Ra3 {[%clk 0:00:06.8]} 63...
f3 {[%clk 0:00:18.6]} 64. gxf3 {[%clk 0:00:05.2]} 64... g2 {[%clk 0:00:17.8]}
65. Ra2 {[%clk 0:00:05]} 65... Rxf3+ {[%clk 0:00:18.1]} 66. Kg4 {[%clk
0:00:04.3]} 66... Re3 {[%clk 0:00:16.7]} 67. Ra1+ {[%clk 0:00:02.9]} 67... Kf2
{[%clk 0:00:17]} 68. Ra2+ {[%clk 0:00:03.1]} 68... Re2 {[%clk 0:00:17.5]} 69.
Ra1 {[%clk 0:00:02.9]} 69... g1=Q+ {[%clk 0:00:17.4]} 70. Rxg1 {[%clk
0:00:03.4]} 70... Kxg1 {[%clk 0:00:18.1]} 71. Kf3 {[%clk 0:00:04.3]} 71... Kf1
{[%clk 0:00:18.2]} 0-1

[Event "*** Titled Tuesday Blitz"]
[Site "Chess.com"]
[Date "2020.04.28"]
[Round "4"]
[White "Kobalia"]
[Black "Malev212"]
[Result "0-1"]
[WhiteElo "2696"]
[BlackElo "2520"]
[TimeControl "180+1"]
[EndTime "10:41:50 PDT"]
[Termination "Malev212 won on time"]

1. e4 {[%clk 0:03:00.9]} 1... c6 {[%clk 0:02:55.5]} 2. d4 {[%clk 0:03:00.3]}
2... d5 {[%clk 0:02:53.1]} 3. exd5 {[%clk 0:03:01]} 3... cxd5 {[%clk 0:02:51.9]}
4. Bd3 {[%clk 0:03:01.9]} 4... Nc6 {[%clk 0:02:51.7]} 5. c3 {[%clk 0:03:02]}
5... Qc7 {[%clk 0:02:51.4]} 6. Ne2 {[%clk 0:03:01.3]} 6... Nf6 {[%clk
0:02:43.9]} 7. O-O {[%clk 0:03:01]} 7... e6 {[%clk 0:02:35.2]} 8. Bf4 {[%clk
0:02:59.8]} 8... Qd8 {[%clk 0:02:34.7]} 9. Nd2 {[%clk 0:02:58.5]} 9... Be7
{[%clk 0:02:34.4]} 10. Nf3 {[%clk 0:02:57.8]} 10... O-O {[%clk 0:02:31.7]} 11.
Re1 {[%clk 0:02:37.3]} 11... Bd7 {[%clk 0:02:30.6]} 12. Bc2 {[%clk 0:02:36.6]}
12... Rc8 {[%clk 0:02:26.5]} 13. Qd3 {[%clk 0:02:35.3]} 13... Na5 {[%clk
0:02:20]} 14. Bg5 {[%clk 0:02:13.3]} 14... g6 {[%clk 0:02:13.8]} 15. Ne5 {[%clk
0:01:59.5]} 15... Nc4 {[%clk 0:02:10.5]} 16. Nxc4 {[%clk 0:01:52]} 16... Rxc4
{[%clk 0:02:02.1]} 17. Nf4 {[%clk 0:01:50.9]} 17... b5 {[%clk 0:01:46.9]} 18. a3
{[%clk 0:01:48.7]} 18... a5 {[%clk 0:01:22.9]} 19. Qf3 {[%clk 0:01:47.1]} 19...
Rc8 {[%clk 0:01:13.9]} 20. Bd3 {[%clk 0:01:42.7]} 20... Re8 {[%clk 0:01:12.5]}
21. h4 {[%clk 0:01:36.6]} 21... Bc6 {[%clk 0:01:09.9]} 22. Qe2 {[%clk
0:00:57.1]} 22... Ne4 {[%clk 0:00:52.4]} 23. Bxe7 {[%clk 0:00:52.4]} 23... Qxe7
{[%clk 0:00:51.9]} 24. h5 {[%clk 0:00:40.7]} 24... g5 {[%clk 0:00:51]} 25. Nh3
{[%clk 0:00:34.2]} 25... Qf6 {[%clk 0:00:50.8]} 26. Qf1 {[%clk 0:00:28.6]} 26...
g4 {[%clk 0:00:48.2]} 27. f3 {[%clk 0:00:22.5]} 27... Nd2 {[%clk 0:00:34.2]} 28.
Qe2 {[%clk 0:00:20.8]} 28... gxh3 {[%clk 0:00:28.1]} 29. Qxd2 {[%clk 0:00:19.8]}
29... hxg2 {[%clk 0:00:27.6]} 30. Re2 {[%clk 0:00:17.7]} 30... Kh8 {[%clk
0:00:25.5]} 31. Rxg2 {[%clk 0:00:15.4]} 31... Rg8 {[%clk 0:00:26]} 32. Kh1
{[%clk 0:00:13.9]} 32... Rxg2 {[%clk 0:00:24.9]} 33. Qxg2 {[%clk 0:00:14]} 33...
Rg8 {[%clk 0:00:24.4]} 34. Qh3 {[%clk 0:00:14]} 34... Qg5 {[%clk 0:00:23]} 35.
h6 {[%clk 0:00:13.2]} 35... e5 {[%clk 0:00:21.1]} 36. Re1 {[%clk 0:00:10.4]}
36... e4 {[%clk 0:00:20.2]} 37. Be2 {[%clk 0:00:08.8]} 37... Rg6 {[%clk
0:00:19.3]} 38. Qc8+ {[%clk 0:00:06.8]} 38... Rg8 {[%clk 0:00:19.2]} 39. Qh3
{[%clk 0:00:06.7]} 39... Bd7 {[%clk 0:00:17.4]} 40. Qh2 {[%clk 0:00:06.8]} 40...
Rg6 {[%clk 0:00:15.9]} 41. Qe5+ {[%clk 0:00:06.6]} 41... Qxe5 {[%clk 0:00:16.5]}
42. dxe5 {[%clk 0:00:06.7]} 42... Rxh6+ {[%clk 0:00:16.4]} 43. Kg2 {[%clk
0:00:06.9]} 43... Rg6+ {[%clk 0:00:15.5]} 44. Kf2 {[%clk 0:00:07]} 44... exf3
{[%clk 0:00:13.5]} 45. Bxf3 {[%clk 0:00:06.8]} 45... Be6 {[%clk 0:00:11]} 46.
Rd1 {[%clk 0:00:06.9]} 46... Rg5 {[%clk 0:00:10.2]} 47. Bxd5 {[%clk 0:00:06.9]}
47... Rf5+ {[%clk 0:00:09.3]} 48. Kg3 {[%clk 0:00:05.7]} 48... Rxe5 {[%clk
0:00:06.1]} 49. Bxe6 {[%clk 0:00:05.8]} 49... fxe6 {[%clk 0:00:05.9]} 50. Rd7
{[%clk 0:00:05.5]} 50... a4 {[%clk 0:00:05.8]} 51. Rb7 {[%clk 0:00:04.9]} 51...
Kg8 {[%clk 0:00:06.1]} 52. Kf4 {[%clk 0:00:05]} 52... Rf5+ {[%clk 0:00:06]} 53.
Ke4 {[%clk 0:00:05.2]} 53... h5 {[%clk 0:00:06]} 54. Re7 {[%clk 0:00:04.7]}
54... Rf6 {[%clk 0:00:04.4]} 55. Ke5 {[%clk 0:00:04.2]} 55... Rh6 {[%clk
0:00:04.4]} 56. Re8+ {[%clk 0:00:02]} 56... Kf7 {[%clk 0:00:03.2]} 57. Rd8
{[%clk 0:00:01.9]} 57... h4 {[%clk 0:00:04.1]} 58. Rd3 {[%clk 0:00:02.2]} 58...
h3 {[%clk 0:00:03.4]} 59. Rf3+ {[%clk 0:00:02.6]} 59... Ke7 {[%clk 0:00:02.6]}
60. Rf1 {[%clk 0:00:01.4]} 60... h2 {[%clk 0:00:03.1]} 0-1

[Event "*** Titled Tuesday Blitz"]
[Site "Chess.com"]
[Date "2020.04.28"]
[Round "4"]
[White "StegariuVlad"]
[Black "Semen_Khanin"]
[Result "1-0"]
[WhiteElo "2515"]
[BlackElo "2703"]
[TimeControl "180+1"]
[EndTime "10:41:53 PDT"]
[Termination "StegariuVlad won by resignation"]

1. e4 {[%clk 0:03:00.9]} 1... c5 {[%clk 0:02:59.6]} 2. Nf3 {[%clk 0:02:57.6]}
2... e6 {[%clk 0:02:59.7]} 3. d4 {[%clk 0:02:54.8]} 3... cxd4 {[%clk 0:03:00.6]}
4. Nxd4 {[%clk 0:02:54.9]} 4... Nc6 {[%clk 0:03:01.5]} 5. Nc3 {[%clk 0:02:51.9]}
5... Qc7 {[%clk 0:03:01.9]} 6. Be2 {[%clk 0:02:51.8]} 6... a6 {[%clk 0:03:02]}
7. O-O {[%clk 0:02:50.7]} 7... Nf6 {[%clk 0:03:02.5]} 8. Be3 {[%clk 0:02:50.8]}
8... Be7 {[%clk 0:03:03]} 9. f4 {[%clk 0:02:48.5]} 9... d6 {[%clk 0:03:03.3]}
10. a4 {[%clk 0:02:48.2]} 10... Nxd4 {[%clk 0:02:58.3]} 11. Bxd4 {[%clk
0:02:46.1]} 11... e5 {[%clk 0:02:58]} 12. Be3 {[%clk 0:02:40.3]} 12... exf4
{[%clk 0:02:57.2]} 13. Bxf4 {[%clk 0:02:39.4]} 13... Be6 {[%clk 0:02:57.4]} 14.
Kh1 {[%clk 0:02:38.7]} 14... O-O {[%clk 0:02:56.8]} 15. a5 {[%clk 0:02:38.5]}
15... Rfe8 {[%clk 0:02:51.5]} 16. Qd4 {[%clk 0:02:36.5]} 16... Rad8 {[%clk
0:02:42.2]} 17. Rfd1 {[%clk 0:02:22.9]} 17... Ng4 {[%clk 0:02:17.3]} 18. Bxg4
{[%clk 0:02:10]} 18... Bxg4 {[%clk 0:02:17.4]} 19. Nd5 {[%clk 0:02:09]} 19...
Qxc2 {[%clk 0:02:13.4]} 20. Rdc1 {[%clk 0:02:08.9]} 20... Qe2 {[%clk 0:01:32.5]}
21. Re1 {[%clk 0:01:21.3]} 21... Qb5 {[%clk 0:01:05.8]} 22. Nc7 {[%clk
0:01:20.9]} 22... Qd7 {[%clk 0:01:05.6]} 23. Nxe8 {[%clk 0:01:20.5]} 23... Rxe8
{[%clk 0:01:06.1]} 24. e5 {[%clk 0:01:18]} 24... d5 {[%clk 0:01:02.9]} 25. Rac1
{[%clk 0:01:16.3]} 25... Be6 {[%clk 0:00:59.8]} 26. Bd2 {[%clk 0:01:14.4]} 26...
h6 {[%clk 0:00:42.9]} 27. Bb4 {[%clk 0:01:13.2]} 27... Qa4 {[%clk 0:00:41.3]}
28. Bc3 {[%clk 0:01:08.8]} 28... Qb5 {[%clk 0:00:41.3]} 29. b4 {[%clk
0:01:02.6]} 29... Rc8 {[%clk 0:00:30.6]} 30. Bd2 {[%clk 0:01:02.5]} 30... Rc4
{[%clk 0:00:30.9]} 31. Rxc4 {[%clk 0:01:01.7]} 31... dxc4 {[%clk 0:00:31.2]} 32.
Bc3 {[%clk 0:01:01.2]} 32... Qc6 {[%clk 0:00:30.6]} 33. Qe4 {[%clk 0:00:53.7]}
33... Qb5 {[%clk 0:00:27]} 34. h3 {[%clk 0:00:49.8]} 34... Bd5 {[%clk
0:00:20.7]} 35. Qg4 {[%clk 0:00:49.1]} 35... Be6 {[%clk 0:00:21]} 36. Qf3 {[%clk
0:00:48.4]} 36... Bd5 {[%clk 0:00:19.4]} 37. Qg4 {[%clk 0:00:48.2]} 37... Be6
{[%clk 0:00:19.5]} 38. Qf3 {[%clk 0:00:32.9]} 38... Qd7 {[%clk 0:00:19.3]} 39.
Rd1 {[%clk 0:00:32.1]} 39... Qa4 {[%clk 0:00:18.9]} 40. Rc1 {[%clk 0:00:28.7]}
40... Bxb4 {[%clk 0:00:17.7]} 41. Qxb7 {[%clk 0:00:21.1]} 41... Bxc3 {[%clk
0:00:14.7]} 42. Qb8+ {[%clk 0:00:21.6]} 42... Kh7 {[%clk 0:00:15]} 43. Qb1+
{[%clk 0:00:22.1]} 43... g6 {[%clk 0:00:14.4]} 44. Rxc3 {[%clk 0:00:22.1]} 44...
Qxa5 {[%clk 0:00:14.8]} 45. Re3 {[%clk 0:00:20.3]} 45... Qc5 {[%clk 0:00:13.9]}
46. Qc1 {[%clk 0:00:20]} 46... a5 {[%clk 0:00:14.3]} 47. Qa3 {[%clk 0:00:20.1]}
47... Qd4 {[%clk 0:00:13.8]} 48. Qc3 {[%clk 0:00:18.9]} 48... Qd1+ {[%clk
0:00:14]} 49. Kh2 {[%clk 0:00:18.7]} 49... a4 {[%clk 0:00:14]} 50. Rf3 {[%clk
0:00:19]} 50... Qb3 {[%clk 0:00:12.9]} 51. Qd4 {[%clk 0:00:18]} 51... Qb5 {[%clk
0:00:12.3]} 52. Qd6 {[%clk 0:00:17.9]} 52... Qd5 {[%clk 0:00:09.8]} 53. Qxd5
{[%clk 0:00:16]} 53... Bxd5 {[%clk 0:00:10]} 54. Ra3 {[%clk 0:00:16.3]} 54...
Bc6 {[%clk 0:00:09.3]} 55. Rc3 {[%clk 0:00:16.2]} 55... Bb5 {[%clk 0:00:09.6]}
56. Kg3 {[%clk 0:00:16.5]} 56... g5 {[%clk 0:00:09.7]} 57. Kf3 {[%clk
0:00:16.1]} 57... Kg6 {[%clk 0:00:09.9]} 58. Ke4 {[%clk 0:00:16.3]} 58... Bc6+
{[%clk 0:00:09.9]} 59. Kd4 {[%clk 0:00:16]} 59... Bxg2 {[%clk 0:00:09.6]} 60.
Kxc4 {[%clk 0:00:16.4]} 60... Kf5 {[%clk 0:00:08.3]} 61. Kd4 {[%clk 0:00:16.7]}
61... Kf4 {[%clk 0:00:07.9]} 62. Rc7 {[%clk 0:00:15.2]} 62... Bxh3 {[%clk
0:00:07.6]} 63. Rxf7+ {[%clk 0:00:15.2]} 63... Kg3 {[%clk 0:00:08]} 64. Ra7
{[%clk 0:00:15.2]} 64... h5 {[%clk 0:00:07.9]} 65. Rxa4 {[%clk 0:00:15.2]} 65...
g4 {[%clk 0:00:06.7]} 66. e6 {[%clk 0:00:14.4]} 66... Bf1 {[%clk 0:00:05.9]} 67.
Rb4 {[%clk 0:00:12.1]} 67... Bd3 {[%clk 0:00:04]} 68. Kxd3 {[%clk 0:00:11.2]}
1-0

[Event "*** Titled Tuesday Blitz"]
[Site "Chess.com"]
[Date "2020.04.28"]
[Round "4"]
[White "rogapa"]
[Black "LuckSlayeer"]
[Result "0-1"]
[WhiteElo "2736"]
[BlackElo "2522"]
[TimeControl "180+1"]
[EndTime "10:41:54 PDT"]
[Termination "LuckSlayeer won by checkmate"]

1. e4 {[%clk 0:03:00]} 1... c5 {[%clk 0:02:59.7]} 2. Nf3 {[%clk 0:03:00]} 2...
Nc6 {[%clk 0:02:59.9]} 3. d4 {[%clk 0:03:00.5]} 3... cxd4 {[%clk 0:03:00.8]} 4.
Nxd4 {[%clk 0:03:01.4]} 4... e5 {[%clk 0:03:00.9]} 5. Nb5 {[%clk 0:03:01.3]}
5... d6 {[%clk 0:03:01.4]} 6. N1c3 {[%clk 0:03:01.2]} 6... a6 {[%clk 0:03:01.8]}
7. Na3 {[%clk 0:03:01.4]} 7... b5 {[%clk 0:03:02.4]} 8. Nd5 {[%clk 0:03:01.7]}
8... Nce7 {[%clk 0:03:03.1]} 9. Bg5 {[%clk 0:02:59.6]} 9... f6 {[%clk
0:03:00.7]} 10. Bxb5+ {[%clk 0:02:54.2]} 10... axb5 {[%clk 0:02:47.2]} 11. Nxb5
{[%clk 0:02:55.1]} 11... Nxd5 {[%clk 0:02:30.4]} 12. Qxd5 {[%clk 0:02:56]} 12...
Rb8 {[%clk 0:01:44]} 13. Bd2 {[%clk 0:02:02.3]} 13... Qd7 {[%clk 0:01:43.9]} 14.
Qc4 {[%clk 0:01:59.9]} 14... Qxb5 {[%clk 0:01:34.5]} 15. Qxb5+ {[%clk
0:01:49.7]} 15... Rxb5 {[%clk 0:01:35.4]} 16. b4 {[%clk 0:01:46.9]} 16... Ne7
{[%clk 0:01:31.6]} 17. a4 {[%clk 0:01:42.9]} 17... Rb8 {[%clk 0:01:31.5]} 18.
O-O {[%clk 0:01:40.5]} 18... d5 {[%clk 0:01:25.4]} 19. Rfb1 {[%clk 0:01:36.7]}
19... dxe4 {[%clk 0:01:20.8]} 20. a5 {[%clk 0:01:36.5]} 20... Ba6 {[%clk
0:01:18]} 21. b5 {[%clk 0:01:31.9]} 21... Rxb5 {[%clk 0:01:18.1]} 22. Rxb5
{[%clk 0:01:30.5]} 22... Bxb5 {[%clk 0:01:19]} 23. a6 {[%clk 0:01:31.3]} 23...
Bxa6 {[%clk 0:01:06.8]} 24. Rxa6 {[%clk 0:01:32.2]} 24... Kf7 {[%clk 0:01:06.7]}
25. Ra7 {[%clk 0:01:29.8]} 25... Ke6 {[%clk 0:01:01.7]} 26. Ra6+ {[%clk
0:01:26.4]} 26... Kd5 {[%clk 0:00:56.5]} 27. Ra5+ {[%clk 0:01:25]} 27... Kc4
{[%clk 0:00:53.5]} 28. Ra4+ {[%clk 0:01:19.5]} 28... Kb5 {[%clk 0:00:52.8]} 29.
Rb4+ {[%clk 0:01:16.3]} 29... Kc5 {[%clk 0:00:44.8]} 30. Rxe4 {[%clk 0:01:14.3]}
30... Nc6 {[%clk 0:00:43.5]} 31. Be3+ {[%clk 0:01:13.2]} 31... Kd5 {[%clk
0:00:43.5]} 32. Ra4 {[%clk 0:01:11.7]} 32... Bc5 {[%clk 0:00:39.2]} 33. Bxc5
{[%clk 0:01:09.9]} 33... Kxc5 {[%clk 0:00:40.1]} 34. Kf1 {[%clk 0:01:10.8]}
34... Rb8 {[%clk 0:00:39.3]} 35. g3 {[%clk 0:01:05.7]} 35... Nd4 {[%clk
0:00:38.4]} 36. Ra7 {[%clk 0:01:02.6]} 36... Ne6 {[%clk 0:00:33.5]} 37. Re7
{[%clk 0:01:01.3]} 37... Kd6 {[%clk 0:00:33.7]} 38. Ra7 {[%clk 0:00:59.4]} 38...
Rc8 {[%clk 0:00:34.1]} 39. Ra6+ {[%clk 0:00:57]} 39... Rc6 {[%clk 0:00:33.3]}
40. Ra2 {[%clk 0:00:54.4]} 40... Nd4 {[%clk 0:00:33.1]} 41. Ra7 {[%clk 0:00:51]}
41... Rc7 {[%clk 0:00:33.4]} 42. Ra8 {[%clk 0:00:48.1]} 42... Rxc2 {[%clk
0:00:31.2]} 43. Kg2 {[%clk 0:00:46.6]} 43... Rc7 {[%clk 0:00:30.4]} 44. h4
{[%clk 0:00:44.7]} 44... Ke6 {[%clk 0:00:30.6]} 45. Rh8 {[%clk 0:00:44]} 45...
h6 {[%clk 0:00:30.7]} 46. h5 {[%clk 0:00:44.2]} 46... Kf5 {[%clk 0:00:28.8]} 47.
Kh3 {[%clk 0:00:42.4]} 47... e4 {[%clk 0:00:28.4]} 48. Kh4 {[%clk 0:00:42]}
48... Nf3+ {[%clk 0:00:28.1]} 49. Kh3 {[%clk 0:00:41.9]} 49... Rc1 {[%clk
0:00:28.1]} 50. Rg8 {[%clk 0:00:39.1]} 50... Rh1+ {[%clk 0:00:24.9]} 51. Kg2
{[%clk 0:00:39.3]} 51... Rg1+ {[%clk 0:00:18.3]} 52. Kh3 {[%clk 0:00:39.2]}
52... Rf1 {[%clk 0:00:15.5]} 53. Kg2 {[%clk 0:00:38.8]} 53... Rg1+ {[%clk
0:00:14.4]} 54. Kh3 {[%clk 0:00:38.9]} 54... Rh1+ {[%clk 0:00:14.8]} 55. Kg2
{[%clk 0:00:39]} 55... Rh2+ {[%clk 0:00:15.2]} 56. Kf1 {[%clk 0:00:39.2]} 56...
Rxh5 {[%clk 0:00:14.9]} 57. Rxg7 {[%clk 0:00:38.9]} 57... Rh1+ {[%clk
0:00:14.6]} 58. Kg2 {[%clk 0:00:38.5]} 58... Rg1+ {[%clk 0:00:14.9]} 59. Kh3
{[%clk 0:00:38.7]} 59... Ng5+ {[%clk 0:00:15.1]} 60. Kh2 {[%clk 0:00:38.5]}
60... Rf1 {[%clk 0:00:15]} 61. Kg2 {[%clk 0:00:38.8]} 61... Rc1 {[%clk
0:00:15.1]} 62. Rd7 {[%clk 0:00:38.2]} 62... Rc2 {[%clk 0:00:14.9]} 63. Re7
{[%clk 0:00:38.1]} 63... Re2 {[%clk 0:00:14]} 64. Re8 {[%clk 0:00:37.6]} 64...
e3 {[%clk 0:00:11]} 65. Kg1 {[%clk 0:00:31.1]} 65... exf2+ {[%clk 0:00:10.3]}
66. Kf1 {[%clk 0:00:31.5]} 66... Rxe8 {[%clk 0:00:10.2]} 67. Kxf2 {[%clk
0:00:31.3]} 67... Kg4 {[%clk 0:00:10.5]} 68. Kg2 {[%clk 0:00:30.7]} 68... Re2+
{[%clk 0:00:10.7]} 69. Kf1 {[%clk 0:00:30.8]} 69... Kf3 {[%clk 0:00:11.3]} 70.
g4 {[%clk 0:00:30.3]} 70... Ne4 {[%clk 0:00:09.2]} 71. g5 {[%clk 0:00:30]} 71...
Ng3+ {[%clk 0:00:08.8]} 72. Kg1 {[%clk 0:00:29.8]} 72... Rg2# {[%clk 0:00:09.2]}
0-1